Cogmind - Beta 10.1 @@@ ROGUE MODE // 2020.10.23 @ 19:46:55 Player: Trollpotato Result: Destroyed by G-34 Mercenary with Small Laser Performance ------------- Evolutions (0) 0 Regions Visited (2) 400 Robots Destroyed (32) 160 Value Destroyed (771) 771 Prototype IDs (0) 0 Alien Tech Used (0) 0 Bonus (0) 0 TOTAL SCORE: 1331 Bonus ------- None Cogmind --------- Core Integrity 0/250 Matter 300/300 Energy 160/160 System Corruption 0% Temperature Cool (6) Movement Treading (180) Ox1 Location -10/Mines Parts ------- > --- POWER (1) -------- Light Nuclear Core > --- PROPULSION (2) --- Light Treads Aluminum Leg > --- UTILITY (2) ------ High-capacity Storage Unit Sensor Array > --- WEAPON (2) ------- (None) > --- INVENTORY (12) --- Light Ion Engine Light Nuclear Core Aluminum Leg Hover Unit Cooling System Small Storage Unit Large Storage Unit Signal Interpreter Medium Armor Plating Peak State ------------ > --- POWER ------------ Light Nuclear Core > --- PROPULSION ------- Aluminum Leg Aluminum Leg > --- UTILITY ---------- Large Storage Unit High-capacity Storage Unit > --- WEAPON ----------- Small Laser Assault Rifle > --- INVENTORY -------- Light Ion Engine Light Treads Hover Unit Cooling System Small Storage Unit Sensor Array Signal Interpreter Medium Armor Plating [Rating: 10] Favorites ----------- Power Light Nuclear Core Engine Light Ion Engine Power Core Light Nuclear Core Propulsion Aluminum Leg Treads Light Treads Leg Aluminum Leg Wheel Compact Wheel Utility High-capacity Storage Unit Device Sensor Array Storage High-capacity Storage Unit Weapon Assault Rifle Energy Gun Medium Laser Ballistic Gun Assault Rifle Launcher Grenade Launcher Build | -11 -10 -10 ------- Run | Scr Mat Min Slots Evolved . | . . . Power . | . . . Propulsion . | . . . Utility . | . . . Weapon . | . . . Parts Attached 30 | 7 17 6 Power 4 | 1 3 . Engine 3 | 1 2 . Core 1 | . 1 . Reactor . | . . . Propulsion 9 | 2 5 2 Treads 1 | . . 1 Leg 3 | . 2 1 Wheel 5 | 2 3 . Hover . | . . . Flight . | . . . Utility 5 | 2 2 1 Device 1 | . . 1 Storage 4 | 2 2 . Processor . | . . . Hackware . | . . . Protection . | . . . Artifact . | . . . Weapon 12 | 2 7 3 Energy Gun 5 | 1 3 1 Energy Cannon . | . . . Ballistic Gun 5 | 1 2 2 Ballistic Cannon . | . . . Launcher 2 | . 2 . Special Weapon . | . . . Impact Weapon . | . . . Slashing Weapon . | . . . Piercing Weapon . | . . . Special Melee Weapon . | . . . Unidentified Prototypes . | . . . Parts Lost 11 | . 6 5 Power 1 | . 1 . Propulsion 3 | . 2 1 Utility . | . . . Weapon 7 | . 3 4 Highest Loss Streak 4 | . 4 3 Average Slot Usage (%) 86 | . 91 84 Engine 4 | . 13 . Core 9 | . . 14 Treads 6 | . . 9 Leg 12 | . . 18 Wheel 8 | . 22 . Device 3 | . . 5 Storage 24 | . 28 22 Energy Gun 9 | . 14 7 Ballistic Gun 7 | . 10 5 Naked Turns . | . . . Heaviest Build 57 | 15 57 56 Greatest Support 32 | 20 32 20 Greatest Overweight (x) 18 | . 18 5 Average Overweight (x) 1 | . . 3 Largest Inventory Capacity 18 | 8 18 18 Average Capacity 14 | 6 12 15 Most Carried 9 | 7 9 9 Average Carried 8 | 3 7 8 Final Capacity 18 | 8 18 12 Final Carried 9 | 7 6 9 Class Distribution -------------------- 76% | Mutant 23% | Scavenger-Mutant Dominant Class ---------------- Mutant | -10/Materials Mutant | -10/Mines Resources | -11 -10 -10 ----------- Run | Scr Mat Min Matter Collected 691 | 276 265 150 Remotely . | . . . Salvage Created 978 | 61 631 286 Parts 62 | 2 49 11 Haulers Intercepted 1 | . 1 . Recyclers Shooed . | . . . Parts Field Recycled . | . . . Retrieved Matter . | . . . Parts Self-Destructed . | . . . Prevented . | . . . Kills | -11 -10 -10 ------- Run | Scr Mat Min Combat Hostiles Destroyed 27 | . 18 9 Melee 4 | . . 4 Guns 16 | . 11 5 AOE 7 | . 7 . Classes Destroyed 7 | 1 5 1 Builder 1 | . 1 . Hauler 1 | . 1 . Recycler 2 | 1 1 . Watcher 1 | . 1 . Swarmer 9 | . 6 3 Grunt 16 | . 12 4 Assembled 2 | . . 2 Best Kill Streak 7 | 1 7 3 Combat Bots Only 5 | . 5 3 Max Kills in Single Turn 3 | 1 3 2 Gunslinging 1 | . . 1 Exploded 2 | . 2 . Melee 1 | . . 1 Uniques/NPCs Destroyed . | . . . Combat | -11 -10 -10 -------- Run | Scr Mat Min Damage Taken 1338 | . 665 673 Core 259 | . 144 115 Absorbed by Shields . | . . . Core Remaining (%) 100 | 100 . . Volleys Fired 82 | 2 48 32 Largest 2 | 1 2 2 Hottest 90 | 20 90 65 Shots Fired 128 | 2 70 56 Gun 120 | 2 62 56 Cannon . | . . . Launcher 8 | . 8 . Special . | . . . Kinetic 68 | 2 29 37 Thermal 31 | . 12 19 Explosive 8 | . 8 . Electromagnetic 21 | . 21 . Robot Hit Streak 11 | 2 8 11 Robot Miss Streak 3 | . 3 3 Penetration Max . | . . . Secondary Targets 3 | . 1 2 Max Gunslinging Chain 1 | . 1 1 Shots Hit Robots 78 | 2 37 39 Core Hits 62 | 2 34 26 Critical Hits . | . . . Critical Kills . | . . . Critical Parts Destroyed . | . . . Melee Attacks . | . . . Impact . | . . . Slashing . | . . . Piercing . | . . . Sneak Attacks . | . . . Combat Hostiles . | . . . Follow-up Attacks . | . . . Damage Inflicted 1548 | 25 1025 498 Guns 874 | 25 423 426 Cannons . | . . . Explosions 602 | . 602 . Melee . | . . . Ramming 72 | . . 72 Kinetic 560 | 25 237 298 Thermal 186 | . 58 128 Explosive 580 | . 580 . Electromagnetic 150 | . 150 . Impact . | . . . Slashing . | . . . Piercing . | . . . Highest Corruption . | . . . Average Corruption . | . . . Corruption Purged . | . . . Overload Shots . | . . . Overflow Damage 66 | . 66 . Projectiles . | . . . Explosions 66 | . 66 . Melee . | . . . Knockbacks . | . . . Impact . | . . . Kinetic . | . . . Secondary . | . . . Self-Inflicted Damage 103 | . 103 . Shots 2 | . 2 . Rammed 19 | . . 19 Targets Rammed 19 | . . 19 Kicked . | . . . Crushed . | . . . Highest Temperature 147 | . 141 147 Average Temperature 44 | . 50 39 Received Heat Transfer 471 | . 261 210 Siege Activations . | . . . Robots Corrupted . | . . . Combat Hostiles . | . . . Parts Fried . | . . . Impact Corruptions . | . . . Robots Melted . | . . . Combat Hostiles . | . . . Parts Melted . | . . . Heat Transferred 435 | . 161 274 Parts Sabotaged . | . . . Parts Stolen . | . . . Parts Stripped . | . . . Power Chain Reactions . | . . . Missiles Intercepted . | . . . Alert | -11 -10 -10 ------- Run | Scr Mat Min Peak Influence 386 | 5 386 246 Initial 136 | . 3 136 Average 134 | 3 249 78 Maximum Alert Level 1 | . 1 1 Low Security (%) 58 | 100 26 74 Level 1 41 | . 73 25 Level 2 . | . . . Level 3 . | . . . Level 4 . | . . . Level 5 . | . . . High Security . | . . . Max Security . | . . . Squads Dispatched 4 | . 4 . Investigation 2 | . 2 . Extermination . | . . . Reinforcement 2 | . 2 . Assault . | . . . Garrison . | . . . Intercept . | . . . Construction Impeded . | . . . Haulers Reinforced . | . . . Stealth | -11 -10 -10 --------- Run | Scr Mat Min Distress Signals 3 | . 2 1 Communications Jammed . | . . . Distress Signals . | . . . Times Spotted 44 | . 29 15 Peak Tracking Total 7 | . 7 3 Tactical Retreats 4 | . 1 3 Traps | -11 -10 -10 ------- Run | Scr Mat Min Traps Triggered 1 | . 1 . Indirectly . | . . . Trap Hack Attempts . | . . . Triggered . | . . . Disarmed . | . . . Reprogrammed . | . . . Reused . | . . . Traps Extracted . | . . . Installed . | . . . Triggered . | . . . Machines | -11 -10 -10 ---------- Run | Scr Mat Min Machines Disabled 5 | . 5 . Max in Single Turn 2 | . 2 . Machines Sabotaged . | . . . Garrisons Compromised . | . . . Overloaded Fab Kills . | . . . Fab Network Shutdowns . | . . . Hacking | -11 -10 -10 --------- Run | Scr Mat Min Machines Accessed 5 | . 5 . Terminals 5 | . 5 . Fabricators . | . . . Repair Stations . | . . . Recycling Units . | . . . Scanalyzers . | . . . Garrison Access . | . . . Total Hacks 14 | . 14 . Successful 8 | . 8 . Failed 6 | . 6 . Catastrophic 3 | . 3 . Database Lockouts . | . . . Manual 14 | . 14 . Terminals 14 | . 14 . Fabricators . | . . . Repair Stations . | . . . Recycling Units . | . . . Scanalyzers . | . . . Garrison Access . | . . . Terminal Hacks 2 | . 2 . Terminal Index 1 | . 1 . Zone Layout 1 | . 1 . Fabricator Hacks . | . . . Repair Station Hacks . | . . . Recycling Unit Hacks . | . . . Scanalyzer . | . . . Garrison Access Hacks . | . . . Unauthorized Hacks 6 | . 6 . Terminals 6 | . 6 . Track 1 | . 1 . Botnet 5 | . 5 . Fabricators . | . . . Repair Stations . | . . . Recycling Units . | . . . Scanalyzers . | . . . Garrison Access . | . . . Data Cores Recovered . | . . . Used . | . . . Hacking Detections 5 | . 5 . Full Trace Events 1 | . 1 . Feedback Events . | . . . Feedback Blocked . | . . . Robot Schematics Acquired . | . . . Robots Built . | . . . Matter . | . . . Time . | . . . Total Robot Build Rating . | . . . Part Schematics Acquired . | . . . Parts Built . | . . . Matter . | . . . Time . | . . . Total Part Build Rating . | . . . Parts Repaired . | . . . Time . | . . . Parts Recycled . | . . . Recycled Matter . | . . . Retrieved Matter . | . . . Retrieved Components . | . . . Parts Scanalyzed . | . . . Part Schematics Acquired . | . . . Parts Damaged . | . . . Bothacking | -11 -10 -10 ------------ Run | Scr Mat Min Used RIF Installer . | . . . Robots Hacked . | . . . Non-combat . | . . . Combat . | . . . Robot Hacks Applied . | . . . Relay Couplers Released . | . . . Robots Rewired . | . . . Allies Hacked . | . . . Hacks Repelled . | . . . Allies | -11 -10 -10 -------- Run | Scr Mat Min Total Allies . | . . . Largest Group . | . . . Highest-Rated Group . | . . . Highest-Rated Ally . | . . . Total Orders . | . . . Ally Attacks . | . . . Total Damage . | . . . Kills . | . . . Allies Corrupted . | . . . Allies Melted . | . . . Intel | -11 -10 -10 ------- Run | Scr Mat Min Robot Analysis Total . | . . . Derelict Logs Recovered 1 | . . 1 Drone Launches . | . . . Drone Recoveries . | . . . Exploration | -11 -10 -10 ------------- Run | Scr Mat Min Turns Passed 2018 | 66 695 1257 Spaces Moved 844 | 56 466 322 Core 10 | 1 9 . Treads 23 | . . 23 Legs 308 | . 9 299 Wheels 503 | 55 448 . Hover . | . . . Flight . | . . . Fastest Speed 50 | 50 80 180 Average Speed 150 | 79 113 216 Slowest Speed 950 | 80 950 270 Overloaded Moves . | . . . Propulsion Burnouts . | . . . Robots Hopped . | . . . Cave-ins Triggered . | . . . Exploration Rate (%) 52 | 4 92 61 Regions Visited 2 Branch Regions 1 Pre-discovered Areas . | . . . Known Exits Taken . | . . . Unknown Exits Taken 2 | 1 1 . Scrap Searched 1 | . . 1 Spaces Dug . | . . . Terrain Destroyed 70 | . 70 . Melee . | . . . Projectile . | . . . AOE 70 | . 70 . Terrain Rammed . | . . . Walls Destroyed . | . . . Machines Disabled . | . . . Actions | -11 -10 -10 --------- Run | Scr Mat Min Total 1448 | 72 565 811 Wait 439 | . 11 428 Move 842 | 55 465 322 Hop . | . . . Pick Up 21 | 8 10 3 Fast Attach 10 | 6 3 1 Attach 8 | 1 4 3 Detach 1 | . . 1 Swap 12 | . 10 2 Drop 14 | . 14 . Fire 82 | 2 48 32 Melee . | . . . Ram . | . . . Kick . | . . . Crush 19 | . . 19 Escape Stasis . | . . . Rewire . | . . . Trap . | . . . Miscellaneous . | . . . Route ------- -11/Scrapyard -10/Materials (discovered 3 exits: [*Mat x2] / [*Min]) -10/Mines (discovered 1 exit: [*Mat]) History --------- Turn | Location | Event 5 | -11/Scrapyard | Discovered new exit (range 16) 67 | -11/Scrapyard | Entered Materials 312 | -10/Materials | Build established: Mutant 325 | -10/Materials | Discovered new exit (range 14) 474 | -10/Materials | Discovered new exit (range 15) 604 | -10/Materials | Discovered new exit (range 9) 653 | -10/Materials | Lost 4 parts (2n2w) 724 | -10/Materials | Core integrity fell below 50% 762 | -10/Materials | Entered Mines 842 | -10/Mines | Learned Materials trap positions 842 | -10/Mines | Discovered new exit (range 3) 1050 | -10/Mines | Build established: Scavenger-Mutant 1189 | -10/Mines | Lost 3 parts (1n2w) 1439 | -10/Mines | Build established: Mutant 1519 | -10/Mines | Excavation squad dispatched 1519 | -10/Mines | A large section of the Mines collapsed 1527 | -10/Mines | Core integrity fell below 20% 1769 | -10/Mines | Excavation squad dispatched 2019 | -10/Mines | Destroyed by G-34 Mercenary with Small Laser Last Messages --------------- 01162_ Acquired 13 matter. 01165_ Acquired Particle Gun. 01167_ Acquired 10 matter. 01214_ K-01 Serf collects debris. 01519_ ALERT: Suspicious cave-in, suspected derelict activity in mines. Dispatching escorted excavation squad. 01527_ Slammed into as-01511. 01532_ Particle Gun destroyed. 01533_ Slammed into as-80609. 01541_ Slammed into as-01511. 01541_ as-01511 destroyed. 01545_ Slammed into as-80609. 01549_ as-80609 destroyed. 01568_ Acquired 3 matter. 01578_ Acquired 4 matter. 01580_ Acquired 3 matter. 01769_ ALERT: Derelict activity in mines confirmed. Dispatching additional escorted excavation squad. 02008_ Slammed into G-34 Mercenary. 02019_ G-34 Mercenary destroyed. Map ----- +----------------------------------------------------+ | # ####### #?# ## """" #?????????? | | # ##???## #?# ## """" #?????????? | | ## #????# ### """" #?????????? | | ?## #????# ## ## #?????????? | | ??## #????# ## ## """" #####?????? | | ##?## #?### ### ## """" #?????? | | ##?# ## ##?# ## """" #?????? | | ### ##??# ## ### #?????? | | ## ##???# ## """" #?# #?????? | | ## ###????# ## """" #?# #?????? | | ### ##??????? ?# """" #?# #?????? | | ??### #???????? ?# #?# #?????? | | ????## ##???????? ?###########?# #?????? | | ??????###????????? ??????????####%##????? | | ?????????????????? ?????????## ##???? | | ?????????????????? ??????#### ##??? | | ??????????????????#?????## " " ##?? | | ????????????????????????# ### ##? | | ????????????????????????# ##?## #? | | ???????????????????????## #???## #? | | ??????????????????????## #???## #? | | ?????????????????????## %? ##???# ##? | | ????????????????????####% ##????# ##?? | | ????????????????????# #g####?????#####??? | | ????????????????????# ##%##?????????????? | | ????????????????????## ##@##????????????? | | ?????????????????????## ##%##???????????? | | ??????????????????????# ####???????????? | | ??????????????????????## ##???????????? | | ???????????????????????### #????????????? | | ?????????????????????????? #????????????? | | ?????????????????????????? #????????????? | | ####?????????????????????? #????????????? | | #??????????????????????##????????????? | | =*#????????????????????????????????????? | | ## #????????????????????????????????????? | | ?# #????????????????????????????????????? | | ## ##???????????????????????????????????? | | == *#???????????????????????????????????? | | < *#???????????????????????????????????? | | #???????????????????????????????????? | | """ #???????????????????????????????????? | | """ #???????????????????????????????????? | | """ #???????????????????????????????????? | | """ #???????????????????????????????????? | | #???????????????????????????????????? | | #####???????????????????????????????????? | | ????????????????????????????????????????? | | ????????????????????????????????????????? | | ????????????????????????????????????????? | +----------------------------------------------------+ Best States ------------- Heat Dissipation 25 Energy Generation 14 Energy Capacity 250 Matter Stores 300 Matter Capacity 300 Sight Range 16 Robot Scan Range 10 Terrain Scan Density 10 Evasion (%) 44 Recoil Reduction 1 Item Schematics ----------------- None Robot Schematics ------------------ None Fabricated ------------ Nothing Alien Tech Used ----------------- None Achievements -------------- Fist Fight Challenges ------------ None Game ------ Seed AbsorptionLatentArmor Manual? 0 Play Time 00:23:35 Cumulative 44.3 hours Start 2020.10.23 @ 19:11:35 End 2020.10.23 @ 19:46:55 Sessions 1 Manual Loads 0 Difficulty Rogue Special Mode None Game No. 27 Rogue 27 Adventurer 0 Explorer 0 Win Type - Total 0 Types 0/0/0/0/0/0/0/0/0 Lore% 20 Gallery% 25 Achievement% 24 Wizard Run 0 Options --------- ASCII 0 Keyboard 0 Movement Numpad Keybinds 0 Fullscreen 1 Font 18/SmallcapsGlow Map View 76x50 Tactical HUD 1 Map Filters NONE Filters NONE Steam 1 RUN: 1bbba84c-2c3a-4989-947f-f9acfb8d9527